bitfinex-derivatives/quotes_SOLF0:USTF0_20250907
["timestamp","ask_amount","ask_price","bid_price","bid_amount"]
[1757217147828,8.30263247,202.78,202.74,4.65]
[1757217148034,8.08,202.77,202.75,4.42448232]
[1757217148336,8.08,202.77,202.74,4.65]
[1757217148532,8.30263247,202.79,202.75,4.42454889]
[1757217148737,8.08,202.78,202.71,4.65]
[1757217149039,8.30263247,202.79,202.72,9.03182388]
[1757217149238,8.08,202.78,202.73,13.68182388]
[1757217149436,8.08,202.77,202.74,9.07454889]
[1757217149735,8.08,202.77,202.75,4.42454889]
[1757217149935,8.08,202.77,202.74,4.65]
[1757217150130,8.08,202.77,202.75,4.42462009]
[1757217150332,8.08,202.77,202.74,4.65]
[1757217150533,8.08,202.77,202.75,4.42469655]
[1757217150736,8.08,202.77,202.74,4.65]
[1757217150934,8.08,202.77,202.75,4.42469655]
[1757217151239,8.30263247,202.79,202.74,4.65]
[1757217151443,8.08,202.78,202.75,4.42468891]
[1757217151739,8.08,202.78,202.71,4.65]
[1757217151942,8.08,202.78,202.73,4.65]
[1757217152137,8.08,202.78,202.75,4.65]
[1757217152338,8.08,202.78,202.76,9.07459985]
[1757217152536,8.08,202.78,202.76,4.65]
[1757217167750,8.30263247,202.81,202.73,2.40955454]
[1757217167950,8.30263247,202.81,202.75,4.65]
[1757217167951,16.38263247,202.81,202.75,4.65]
[1757217168152,8.08,202.81,202.76,9.12197782]
[1757217168457,8.08,202.81,202.77,4.41547419]
[1757217168655,8.08,202.81,202.75,4.65]
[1757217168851,8.08,202.81,202.76,9.1213359]
[1757217169057,7.63,202.81,202.77,4.41516156]
[1757217169258,7.63,202.81,202.75,4.65]
[1757217169456,7.63,202.81,202.76,4.41499502]
[1757217169657,7.63,202.81,202.77,4.41499502]
[1757217169856,7.63,202.81,202.75,4.64]
[1757217170058,8.30263247,202.82,202.76,4.41499502]
[1757217170253,8.30263247,202.82,202.77,4.41499502]
[1757217170456,7.63,202.81,202.75,4.64]
[1757217170650,8.30263247,202.82,202.76,4.41485226]
[1757217170859,8.30263247,202.82,202.77,4.41485226]
[1757217171064,7.63,202.81,202.75,4.64]
[1757217171259,8.30263247,202.82,202.76,4.41473162]
[1757217171461,7.63,202.81,202.74,4.64]
[1757217171662,7.63,202.81,202.75,9.12044768]
[1757217171962,8.30263247,202.82,202.76,4.41473162]
[1757217172158,7.63,202.81,202.74,4.64]
[1757217172460,7.63,202.81,202.75,9.12024199]
[1757217172660,7.63,202.81,202.76,9.05463206]
[1757217172859,8.30263247,202.82,202.76,4.64]
[1757217173453,7.63,202.81,202.76,4.64]
[1757217178867,8.30263247,202.82,202.76,4.64]
[1757217179166,15.93263247,202.82,202.77,4.4143512]
[1757217179364,7.63,202.81,202.74,4.64]
[1757217179564,7.63,202.81,202.75,13.7596657]
[1757217179759,8.30263247,202.82,202.76,9.1196657]
[1757217179962,8.30263247,202.82,202.77,9.0543512]
[1757217180162,8.30263247,202.82,202.77,4.64]
[1757217180558,7.63,202.81,202.77,4.64]
[1757217180966,8.30263247,202.82,202.77,4.64]
[1757217181663,7.63,202.81,202.77,4.64]
[1757217183368,8.30263247,202.82,202.77,4.64]
[1757217183574,7.63,202.81,202.77,4.64]
[1757217183871,8.30263247,202.82,202.77,4.64]
[1757217184065,7.63,202.81,202.77,4.64]
[1757217184370,8.30263247,202.82,202.77,4.64]
[1757217184667,7.63,202.81,202.77,4.64]
[1757217185062,8.30263247,202.82,202.77,4.64]
[1757217185259,7.63,202.81,202.77,4.64]
[1757217185459,8.30263247,202.82,202.77,6.18147959]
[1757217186666,7.63,202.81,202.77,6.18147959]
[1757217187261,8.30263247,202.82,202.77,6.18147959]
[1757217187667,7.63,202.81,202.77,6.18147959]
[1757217188167,8.30263247,202.82,202.77,6.18147959]
[1757217188466,7.63,202.8,202.77,6.18147959]
[1757217188770,8.30263247,202.81,202.77,6.18147959]
[1757217189769,7.63,202.8,202.77,6.18147959]
[1757217190769,8.30263247,202.81,202.77,6.18147959]
[1757217191065,7.63,202.8,202.77,6.18147959]
[1757217192070,8.30263247,202.81,202.77,6.18147959]
[1757217192375,7.63,202.8,202.77,6.18147959]
[1757217193263,8.30263247,202.81,202.77,6.18147959]
[1757217194868,7.63,202.8,202.77,6.18147959]
[1757217195269,8.30263247,202.81,202.77,6.18147959]
[1757217195470,7.63,202.8,202.77,6.18147959]
[1757217197765,8.30263247,202.81,202.77,6.18147959]
[1757217198168,7.63,202.8,202.77,6.18147959]
[1757217198370,8.30263247,202.81,202.77,6.18147959]
[1757217198769,7.63,202.8,202.77,6.18147959]
[1757217199170,8.30263247,202.81,202.77,6.18147959]
[1757217199576,7.51,202.8,202.77,6.18147959]
[1757217199776,8.30263247,202.81,202.77,6.18147959]
[1757217199968,7.51,202.8,202.77,6.18147959]
[1757217200372,8.30263247,202.81,202.77,6.18147959]
[1757217201176,7.51,202.8,202.77,6.18147959]
[1757217201376,8.30263247,202.81,202.77,6.18147959]
[1757217201572,7.51,202.8,202.77,6.18147959]
[1757217201976,8.30263247,202.81,202.77,6.18147959]
[1757217202974,7.51,202.8,202.77,6.18147959]
[1757217203179,8.30263247,202.81,202.77,6.18147959]
[1757217203679,7.51,202.8,202.77,6.18147959]
[1757217203879,8.30263247,202.81,202.77,6.18147959]
[1757217204472,7.51,202.8,202.77,6.18147959]
[1757217205074,8.30263247,202.81,202.77,6.18147959]
[1757217205775,7.51,202.8,202.77,6.18147959]
[1757217205974,8.30263247,202.81,202.77,6.18147959]
[1757217206782,7.51,202.8,202.77,6.18147959]
[1757217206975,8.30263247,202.81,202.77,6.18147959]
[1757217207175,8.30263247,202.81,202.78,4.41517396]
[1757217207376,8.30263247,202.81,202.77,6.18147959]
[1757217207679,8.30263247,202.81,202.78,4.41518695]
[1757217207877,8.30263247,202.81,202.77,6.18147959]
[1757217208080,7.51,202.8,202.78,4.41518695]
[1757217208280,8.30263247,202.81,202.77,6.18147959]
[1757217208481,7.51,202.8,202.78,4.41530372]
[1757217208682,8.30263247,202.81,202.77,6.18147959]
[1757217208882,8.30263247,202.81,202.78,4.41530372]
[1757217209184,7.51,202.8,202.77,6.18147959]
[1757217209483,8.30263247,202.81,202.78,4.41543822]
[1757217209683,7.51,202.8,202.77,6.18147959]
[1757217209976,8.30263247,202.81,202.78,4.41543822]
[1757217210177,8.30263247,202.81,202.77,6.18147959]
[1757217210377,8.30263247,202.81,202.78,4.41559424]
[1757217210572,8.30263247,202.81,202.77,6.18147959]
[1757217210777,8.30263247,202.81,202.78,4.41559424]
[1757217211073,7.51,202.8,202.77,6.18147959]
[1757217211279,8.30263247,202.81,202.78,4.41576533]
[1757217211484,7.51,202.8,202.77,6.18147959]
[1757217211681,7.51,202.8,202.78,4.41577773]
[1757217211886,7.51,202.8,202.77,6.18147959]
[1757217212186,8.30263247,202.81,202.78,4.41577773]
[1757217212485,8.30263247,202.81,202.77,6.18147959]
[1757217212685,8.30263247,202.81,202.78,4.41599892]
[1757217212983,8.30263247,202.81,202.77,6.18147959]
[1757217213183,8.30263247,202.81,202.78,4.41599892]
[1757217213384,7.51,202.8,202.77,6.18147959]
[1757217213686,7.51,202.8,202.78,4.41603999]
[1757217213886,8.30263247,202.81,202.77,6.18147959]
[1757217214088,7.51,202.8,202.78,4.41603999]
[1757217214284,7.51,202.8,202.77,6.18147959]
[1757217214489,7.51,202.8,202.78,4.41608636]
[1757217214788,8.30263247,202.81,202.77,6.18147959]
[1757217214988,7.51,202.8,202.78,4.41608636]
[1757217215190,8.30263247,202.81,202.77,6.18147959]
[1757217215484,8.30263247,202.81,202.78,4.41613863]
[1757217215683,7.51,202.8,202.77,6.18147959]
[1757217215883,7.51,202.8,202.78,4.41613863]
[1757217216083,7.51,202.8,202.77,6.18147959]
[1757217216386,8.30263247,202.81,202.78,4.41619747]
[1757217216586,7.51,202.8,202.77,6.18147959]
[1757217216783,8.30263247,202.81,202.78,4.41619747]
[1757217216987,8.30263247,202.81,202.77,6.18147959]
[1757217217286,8.30263247,202.81,202.78,4.41619747]
[1757217217490,8.30263247,202.81,202.77,6.18147959]
[1757217217688,8.30263247,202.81,202.78,4.41626384]
[1757217217882,8.30263247,202.81,202.77,6.18147959]
[1757217218078,7.51,202.8,202.78,4.41626384]
[1757217218283,8.30263247,202.81,202.77,4.64]
[1757217218483,7.51,202.8,202.78,4.41633905]
[1757217218687,8.30263247,202.81,202.77,6.18147959]
[1757217218889,8.30263247,202.81,202.78,4.41633905]
[1757217219085,8.30263247,202.81,202.77,6.18147959]
[1757217219389,8.30263247,202.81,202.78,4.41642501]
[1757217219590,7.51,202.8,202.77,6.18147959]
[1757217219781,7.51,202.8,202.78,4.41642501]
[1757217219986,8.30263247,202.81,202.77,6.18147959]
[1757217220190,8.30263247,202.81,202.78,4.42148981]
[1757217220393,8.30263247,202.81,202.77,6.18147959]
[1757217220591,8.30263247,202.81,202.78,4.42158854]
[1757217220792,8.30263247,202.81,202.77,6.18147959]
[1757217220991,8.30263247,202.81,202.78,4.42158854]
[1757217221193,8.30263247,202.81,202.77,6.18147959]
[1757217221394,8.30263247,202.81,202.78,4.42170555]
[1757217221596,7.51,202.8,202.77,6.18147959]
[1757217221789,7.51,202.8,202.78,4.42170555]
[1757217221990,7.51,202.8,202.77,6.18147959]
[1757217222192,8.30263247,202.81,202.78,4.42170555]
[1757217222387,7.51,202.8,202.77,6.18147959]
[1757217222598,7.51,202.8,202.78,4.42185008]
[1757217222798,7.51,202.8,202.77,6.18147959]
[1757217222998,7.51,202.8,202.78,4.42185008]
[1757217223296,7.51,202.8,202.77,6.18147959]
[1757217223597,8.30263247,202.81,202.78,4.42204579]
[1757217223798,8.30263247,202.81,202.77,6.18147959]
[1757217224092,7.51,202.8,202.78,4.42204579]
[1757217224297,8.30263247,202.81,202.77,6.18147959]
[1757217224500,8.30263247,202.81,202.78,4.42253473]
[1757217224794,7.51,202.8,202.77,6.18147959]
[1757217224999,7.51,202.8,202.78,4.42253473]
[1757217225193,7.51,202.8,202.77,6.18147959]
[1757217225498,7.51,202.8,202.78,4.42253537]
[1757217225700,7.51,202.8,202.77,6.18147959]
[1757217225998,7.51,202.8,202.78,4.42253537]
[1757217226200,7.51,202.8,202.77,6.18147959]
[1757217226399,7.51,202.8,202.78,4.4225348]
[1757217226602,7.51,202.8,202.77,6.18147959]
[1757217226802,7.51,202.8,202.78,4.4225348]
[1757217227002,8.30263247,202.81,202.77,6.18147959]
[1757217227202,8.30263247,202.81,202.78,4.4225348]
[1757217227403,8.30263247,202.81,202.77,6.18147959]
[1757217227600,8.30263247,202.81,202.78,4.42253432]
[1757217227797,8.30263247,202.81,202.77,6.18147959]
[1757217227995,8.30263247,202.81,202.78,4.42253432]
[1757217228304,7.51,202.8,202.77,6.18147959]
[1757217228504,7.51,202.8,202.78,4.42253432]
[1757217228702,7.51,202.8,202.77,6.18147959]
[1757217228905,7.51,202.8,202.78,4.42253432]
[1757217229102,7.51,202.8,202.77,6.18147959]
[1757217229303,7.51,202.8,202.78,4.42253537]
[1757217229605,7.51,202.8,202.77,6.18147959]
[1757217229803,7.51,202.8,202.78,4.42253537]
[1757217230004,7.51,202.8,202.77,6.18147959]
[1757217230206,7.51,202.8,202.78,4.42253537]
[1757217230407,7.51,202.8,202.77,6.18147959]
[1757217230601,7.51,202.8,202.78,4.42253537]
[1757217230801,7.51,202.8,202.77,6.18147959]
[1757217231004,8.30263247,202.81,202.78,4.42253537]
[1757217231204,8.02,202.8,202.77,4.64]
[1757217231405,8.02,202.8,202.78,4.4225348]
[1757217231606,8.02,202.8,202.77,4.64]
[1757217231802,8.02,202.8,202.78,4.4225348]
[1757217232002,8.02,202.8,202.77,4.64]
[1757217232203,8.02,202.8,202.78,4.42253484]
[1757217232404,8.02,202.8,202.77,4.64]
[1757217232604,8.02,202.8,202.78,4.42253484]
[1757217232804,8.02,202.8,202.77,4.64]
[1757217233004,8.02,202.8,202.78,4.42253484]
[1757217233206,8.02,202.8,202.77,4.64]
[1757217233404,8.02,202.8,202.78,4.42253484]
[1757217233603,8.02,202.8,202.77,4.64]
[1757217233805,8.02,202.8,202.78,4.42253484]
[1757217234005,8.02,202.8,202.77,4.64]
[1757217234209,8.02,202.8,202.78,4.42253484]
[1757217234409,8.02,202.8,202.77,4.64]
[1757217234609,8.02,202.8,202.78,4.42253474]
[1757217234809,8.02,202.8,202.77,4.64]
[1757217235010,8.30263247,202.81,202.78,4.42253474]
[1757217235311,8.30263247,202.81,202.77,4.64]
[1757217235609,8.02,202.8,202.78,4.42253426]
[1757217235806,8.30263247,202.81,202.77,4.64]
[1757217236108,8.02,202.8,202.78,4.42253426]
[1757217236311,8.02,202.8,202.77,4.64]
[1757217236511,8.30263247,202.81,202.78,4.4225331]
[1757217236706,8.30263247,202.81,202.77,4.64]
[1757217236907,8.02,202.8,202.78,4.4225331]
[1757217237107,8.02,202.8,202.77,4.64]
[1757217237310,8.02,202.8,202.78,4.42253246]
[1757217237506,8.02,202.8,202.77,4.64]
[1757217237714,8.02,202.8,202.78,4.42253246]
[1757217237914,8.30263247,202.81,202.77,4.64]
[1757217238116,8.30263247,202.81,202.78,4.42253246]
[1757217238316,8.30263247,202.81,202.77,4.64]
[1757217238515,40.00017663,202.86,202.77,4.64]
[1757217238516,8.02,202.79,202.78,4.42253217]
[1757217241822,8.02,202.79,202.77,4.64]
[1757217251826,8.02,202.79,202.78,9.14861201]
[1757217256337,8.30263247,202.84,202.78,9.14861201]
[1757217256539,16.32263247,202.85,202.8,4.64]
[1757217256837,8.02,202.84,202.82,4.64]
[1757217257030,8.02,202.84,202.83,4.4185362]
[1757217257227,8.02,202.85,202.82,4.64]
[1757217257431,8.30263247,202.86,202.82,4.64]
[1757217257834,8.02,202.85,202.82,4.64]
[1757217258240,8.30263247,202.86,202.82,4.64]
[1757217258542,8.02,202.85,202.82,4.64]
[1757217258937,8.30263247,202.86,202.82,4.64]
[1757217259146,8.02,202.85,202.83,9.11305176]
[1757217259346,8.02,202.85,202.83,4.64]
[1757217261541,8.30263247,202.89,202.84,4.46849968]
[1757217261841,8.09,202.88,202.82,7.04846289]
[1757217262039,8.30263247,202.89,202.83,4.46849968]
[1757217262245,8.09,202.88,202.82,7.04846289]
[1757217262442,8.30263247,202.89,202.83,4.46695981]
[1757217262744,8.09,202.88,202.82,7.04846289]
[1757217262943,8.09,202.88,202.83,4.46695981]
[1757217263145,8.09,202.88,202.82,7.04846289]
[1757217297372,7.95,202.88,202.83,4.47204491]
[1757217297567,7.95,202.88,202.82,7.04846289]
[1757217297871,7.95,202.88,202.83,4.47204491]
[1757217298072,7.95,202.88,202.82,7.04846289]
[1757217298366,7.95,202.88,202.83,4.47204491]
[1757217298570,7.95,202.88,202.82,7.04846289]
[1757217298771,7.95,202.88,202.83,4.47335292]
[1757217298968,7.95,202.88,202.82,7.04846289]
[1757217299169,7.95,202.88,202.83,4.47335292]
[1757217299468,7.95,202.88,202.82,7.04846289]
[1757217299769,7.95,202.88,202.83,4.47493625]
[1757217300065,7.95,202.88,202.82,7.04846289]
[1757217300271,8.30263247,202.89,202.83,4.47493625]
[1757217300467,7.95,202.88,202.84,4.47493625]
[1757217300671,7.95,202.88,202.82,7.04846289]
[1757217300965,7.95,202.88,202.83,4.47690153]
[1757217301167,8.30263247,202.88,202.84,4.47690153]
[1757217301367,8.30263247,202.88,202.82,2.40846289]
[1757217301667,7.95,202.88,202.83,9.20526714]
[1757217301869,7.95,202.88,202.85,4.64]
[1757217302067,8.30263247,202.89,202.85,4.64]
[1757217302273,7.95,202.88,202.85,4.64]
[1757217302669,8.30263247,202.89,202.85,4.64]
[1757217303269,7.95,202.88,202.85,4.64]
[1757217303771,8.30263247,202.89,202.86,4.48098911]
[1757217303967,8.30263247,202.89,202.85,4.64]
[1757217304168,7.95,202.88,202.85,4.64]
[1757217304471,8.30263247,202.89,202.86,4.48121831]
[1757217304666,7.95,202.88,202.85,4.64]
[1757217304872,8.30263247,202.89,202.86,4.48121831]
[1757217305063,7.95,202.88,202.85,4.64]
[1757217305264,7.95,202.88,202.86,4.48100283]
[1757217305467,8.30263247,202.89,202.85,4.64]
[1757217305666,8.30263247,202.89,202.86,4.48150125]
[1757217305868,7.95,202.88,202.85,4.64]
[1757217306167,8.30263247,202.89,202.86,4.48129858]
[1757217306372,8.30263247,202.89,202.85,4.64]
[1757217306573,8.30263247,202.89,202.86,4.48144069]
[1757217306765,8.30263247,202.89,202.85,4.64]
[1757217306968,7.95,202.88,202.86,4.48144069]
[1757217307175,7.95,202.88,202.82,7.04846289]
[1757217307375,8.30263247,202.89,202.83,9.20934931]
[1757217307575,8.30263247,202.89,202.85,1.54032708]
[1757217307772,7.95,202.88,202.86,4.4812342]
[1757217307971,8.30263247,202.89,202.85,1.54032708]
[1757217308172,7.95,202.88,202.87,1.54032708]
[1757217308372,7.95,202.88,202.87,6.02157267]
[1757217309375,7.98494479,202.89,202.87,6.02157267]
[1757217309676,7.98494479,202.89,202.88,4.48124559]
[1757217311278,0.03494479,202.89,202.88,4.48124559]
[1757217311578,0.03494479,202.89,202.88,5.72124559]
[1757217312774,0.03494479,202.89,202.88,10.44537526]
[1757217313173,0.03494479,202.89,202.88,5.72124559]
[1757217313378,0.03494479,202.89,202.88,10.44403993]
[1757217314077,0.03494479,202.89,202.88,5.72124559]
[1757217318283,0.03494479,202.89,202.88,1.24]
[1757217325489,0.03494479,202.89,202.88,5.70784081]
[1757217328191,0.03494479,202.89,202.88,1.24]
[1757217329094,0.03494479,202.89,202.88,5.70588157]
[1757217329391,7.82,202.95,202.89,1.24]
[1757217329590,8.30263247,202.97,202.92,1.54032708]
[1757217330090,8.30263247,202.97,202.92,2.78032708]
[1757217330481,8.30263247,202.97,202.92,2.81481627]
[1757217330692,7.82,202.96,202.92,2.81481627]
[1757217331293,8.30263247,202.97,202.92,2.81481627]
[1757217331789,7.82,202.96,202.92,2.81481627]
[1757217332089,7.82,202.96,202.93,1.24]
[1757217332290,7.82,202.96,202.92,1.57481627]
[1757217332691,7.82,202.96,202.93,1.24]
[1757217334991,8.30263247,202.98,202.93,1.24]
[1757217335993,7.82,202.97,202.93,1.24]
[1757217336391,8.30263247,202.98,202.93,1.24]
[1757217336692,7.82,202.97,202.93,1.24]
[1757217336891,8.30263247,202.98,202.93,1.24]
[1757217337489,7.82,202.97,202.93,1.24]
[1757217337793,8.30263247,202.98,202.93,1.24]
[1757217338385,7.82,202.97,202.93,1.24]
[1757217338586,7.82,202.98,202.93,1.24]
[1757217339691,8.30263247,202.99,202.93,1.24]
[1757217340195,7.82,202.98,202.93,1.24]
[1757217340491,8.30263247,202.99,202.93,1.24]
[1757217341195,7.82,202.98,202.93,1.24]
[1757217341395,8.30263247,202.99,202.93,1.24]
[1757217341795,7.82,202.98,202.93,1.24]
[1757217342696,8.30263247,202.99,202.93,1.24]
[1757217342897,7.82,202.98,202.94,1.54032708]
[1757217344095,8.30263247,202.99,202.94,1.54032708]
[1757217344890,7.82,202.98,202.94,1.54032708]
[1757217345094,8.30263247,202.99,202.94,1.54032708]
[1757217345491,7.82,202.98,202.94,1.54032708]
[1757217346192,8.30263247,202.99,202.94,1.54032708]
[1757217346391,7.82,202.98,202.94,1.54032708]
[1757217346796,8.30263247,202.99,202.94,1.54032708]
[1757217347195,7.82,202.98,202.94,1.54032708]
[1757217347394,8.30263247,202.99,202.94,1.54032708]
[1757217347800,7.82,202.98,202.94,2.78032708]
[1757217348198,7.82,202.98,202.94,1.54032708]
[1757217351698,7.93,202.98,202.94,1.54032708]
[1757217355301,16.23263247,202.98,202.94,1.54032708]
[1757217361708,8.30263247,202.98,202.94,1.54032708]
[1757217361903,8.30263247,202.98,202.94,2.77032708]
[1757217362106,8.30263247,202.98,202.94,1.54032708]
[1757217362403,7.93,202.97,202.94,1.54032708]
[1757217362604,8.30263247,202.98,202.94,1.54032708]
[1757217362901,7.93,202.97,202.94,1.54032708]
[1757217363506,8.30263247,202.98,202.94,1.54032708]
[1757217363901,7.93,202.97,202.94,1.54032708]
[1757217364102,8.30263247,202.98,202.94,1.54032708]
[1757217364705,7.93,202.97,202.94,1.54032708]
[1757217365203,8.30263247,202.98,202.94,1.54032708]
[1757217365408,7.93,202.97,202.94,1.54032708]
[1757217365609,8.30263247,202.98,202.94,1.54032708]
[1757217366308,7.93,202.97,202.94,1.54032708]
[1757217366906,8.30263247,202.98,202.94,1.54032708]
[1757217367313,7.93,202.96,202.94,1.54032708]
[1757217367511,7.93,202.96,202.92,1.26448919]
[1757217367709,8.30263247,202.97,202.92,1.26448919]
[1757217368612,7.93,202.95,202.92,1.26448919]
[1757217369412,7.93,202.95,202.93,1.23]
[1757217372412,8.30263247,202.96,202.93,1.23]
[1757217372612,7.93,202.95,202.93,1.23]
[1757217373217,16.23263247,202.95,202.93,1.23]
[1757217373415,7.93,202.94,202.92,1.26448919]
[1757217373616,7.93,202.94,202.93,4.470992]
[1757217387829,7.93,202.94,202.93,5.720992]
[1757217388126,7.93,202.94,202.93,4.470992]
[1757217397733,8.11,202.93,202.92,0.03448919]
[1757217397934,8.11,202.93,202.92,4.5067376]
[1757217410246,16.41263247,202.93,202.81,1.27]
[1757217410445,7.77,202.93,202.82,15.45954984]
[1757217410645,7.77,202.93,202.83,9.19324101]
[1757217410847,10.17462133,202.93,202.84,9.19324101]
[1757217411046,7.77,202.91,202.85,9.19324101]
[1757217411253,7.77,202.91,202.86,4.46750379]
[1757217411451,7.77,202.91,202.81,1.27]
[1757217411651,7.77,202.91,202.82,9.11593733]
[1757217411850,7.77,202.91,202.83,9.11593733]
[1757217412050,7.77,202.91,202.84,4.46571456]
[1757217412354,7.77,202.91,202.85,4.46571456]
[1757217412551,7.77,202.91,202.81,1.27]
[1757217412751,7.77,202.91,202.82,9.10998779]
[1757217413049,7.77,202.91,202.83,9.10998779]
[1757217413246,7.77,202.91,202.84,4.4628]
[1757217413447,7.77,202.91,202.85,4.4628]
[1757217413650,7.77,202.91,202.81,1.27]
[1757217413851,7.77,202.91,202.82,9.10543351]
[1757217414052,7.77,202.91,202.83,4.46056895]
[1757217414254,7.77,202.91,202.84,4.46056895]
[1757217414454,7.77,202.91,202.81,1.27]
[1757217414755,7.77,202.91,202.82,9.10169468]
[1757217414954,7.77,202.91,202.83,4.45873737]
[1757217415155,7.77,202.91,202.84,4.45873737]
[1757217415358,7.77,202.91,202.81,1.27]
[1757217415552,7.77,202.91,202.82,9.09852087]
[1757217415751,7.77,202.91,202.83,4.45718259]
[1757217415953,7.77,202.91,202.84,4.45718259]
[1757217416256,7.77,202.91,202.81,1.27]
[1757217416452,7.77,202.91,202.82,4.45567652]
[1757217416652,7.77,202.91,202.83,4.45567652]
[1757217416957,7.77,202.91,202.84,4.45567652]
[1757217417260,7.77,202.91,202.81,1.27]
[1757217417553,7.77,202.91,202.82,4.45449761]
[1757217417756,7.77,202.91,202.83,4.45449761]
[1757217417957,7.77,202.91,202.84,4.45449761]
[1757217418158,7.77,202.91,202.81,1.27]
[1757217418457,7.77,202.91,202.82,4.45449761]
[1757217418655,7.77,202.91,202.83,4.45449761]
[1757217418957,7.77,202.91,202.81,1.27]
[1757217419153,7.77,202.91,202.82,4.4534593]
[1757217419355,7.77,202.91,202.83,4.4534593]
[1757217419653,7.77,202.91,202.81,1.27]
[1757217419848,7.77,202.91,202.82,4.45254205]
[1757217420050,7.77,202.91,202.83,4.45254205]
[1757217420359,16.07263247,202.91,202.81,1.27]
[1757217422255,7.77,202.91,202.81,1.27]
[1757217429465,1.54054377,202.9,202.83,1.54054377]
[1757217429763,7.77,202.89,202.83,2.81054377]
[1757217430659,7.77,202.89,202.83,1.54054377]
[1757217430865,7.77,202.89,202.85,1.54054377]
[1757217431063,7.77,202.89,202.86,1.27]
[1757217432767,1.54054377,202.92,202.86,1.27]
[1757217432960,7.77,202.91,202.86,1.27]
[1757217433366,1.54054377,202.92,202.86,1.27]
[1757217433561,7.77,202.91,202.86,1.27]
[1757217433762,1.54054377,202.92,202.86,1.27]
[1757217433967,7.77,202.91,202.86,1.27]
[1757217434360,1.54054377,202.92,202.86,1.27]
[1757217434971,7.77,202.91,202.86,1.27]
[1757217435265,1.54054377,202.92,202.86,1.27]
[1757217436368,7.77,202.91,202.86,1.27]
[1757217437270,1.54054377,202.92,202.86,1.27]
[1757217437471,7.77,202.91,202.86,1.27]
[1757217437872,7.77,202.91,202.85,1.54054377]
[1757217447274,13.2905019,202.91,202.85,1.54054377]
[1757217447479,13.2905019,202.91,202.86,4.46533263]
[1757217447672,13.2905019,202.91,202.85,1.54054377]
[1757217447873,13.2905019,202.91,202.86,4.46533263]
[1757217448072,13.2905019,202.91,202.85,1.54054377]
[1757217448273,13.2905019,202.91,202.86,4.46533263]
[1757217448475,13.2905019,202.91,202.85,1.54054377]
[1757217448675,13.2905019,202.91,202.86,4.46617986]
[1757217448878,13.2905019,202.91,202.85,1.54054377]
[1757217449176,13.2905019,202.91,202.86,4.46617986]
[1757217449376,13.2905019,202.91,202.85,1.54054377]
[1757217449577,13.2905019,202.91,202.86,4.46711299]
[1757217449785,13.2905019,202.91,202.85,1.54054377]
[1757217449990,13.2905019,202.91,202.86,4.46711299]
[1757217450173,13.2905019,202.91,202.85,1.54054377]
[1757217450378,13.2905019,202.91,202.86,4.46711299]
[1757217450579,13.2905019,202.91,202.85,1.54054377]
[1757217450878,13.2905019,202.91,202.86,4.46914032]
[1757217451080,13.2905019,202.91,202.85,1.54054377]
[1757217451279,13.2905019,202.91,202.86,4.46914032]
[1757217451480,13.2905019,202.91,202.85,1.54054377]
[1757217451679,13.2905019,202.91,202.86,4.47030603]
[1757217451879,13.2905019,202.91,202.87,4.47030603]
[1757217452080,13.2905019,202.91,202.85,1.54054377]
[1757217452280,13.2905019,202.91,202.86,4.47030603]
[1757217452482,13.2905019,202.91,202.87,4.47030603]
[1757217452687,13.2905019,202.91,202.85,1.54054377]
[1757217452986,13.2905019,202.91,202.86,4.47139704]
[1757217453180,13.2905019,202.91,202.87,4.47139704]
[1757217453379,5.5205019,202.9,202.85,1.54054377]
[1757217453686,8.02,202.89,202.86,4.4726468]
[1757217453889,5.5205019,202.9,202.87,4.4726468]
[1757217454076,8.02,202.89,202.86,1.27]